Workbook

Sheet Instructivo
A1: CRITERIO DE PRIORIZACIÓN DE TRÁMITES ADMINISTRATIVOS
A2: Instructivo
A3: Consideraciones generales
A5: En las hojas “COSTO DE ADMINISTRACIÓN PÚBLICA”y “RESUMEN” para añadir más trámites y que apliquen las fórmulas, se deberá seleccionar la primera fila y copiarla una por cada trámite de la entidad
A7: Todas las hojas tienen columnas de color celeste, en las cuales NO deben ingresar valores ya que contienen fórmulas.
A8: Para la carga en GOB.EC. La institución debe recordar que el peso máximo del archivo es de 2 MB.
A9: Esquema de puntuación
A10: Para priorizar un trámite, se realizará un análisis de criterios básicos y adicionales basado en información que disponen las instituciones sujetas a esta norma técnica. Cada criterio será puntuado según los lineamientos presentes en esta norma.
A11: a) Demanda Anual
A12: Considerará el volumen o frecuencia de las solicitudes que ingresan al año a cada institución para la gestión de un trámite en particular.
A13: La identificación del volumen anual de los trámites se realizará a través de sus registros de transacciones y/o el número de visitas de consulta de información realizadas a través de páginas web institucionales.
A14: Para realizar el registro realice lo siguiente:
A15: 1.- Seleccione la hoja DEMANDA ANUAL
A16: 2.- Ingrese los trámites de la institución registrando el identificador y nombre en las columnas respectivas.
A17: 3.- Para cada trámite debe especificar en la columna DEMANDA ANUAL el volumen o frecuencia anual, de acuerdo a lo mencionado anteriormente.
A18: 4.- Una vez terminado el llenado solicitado presione el botón PUNTUACIÓN, se ordenara de menor a mayor.
A19: 5.- Usted visualizará el ordenamiento de los trámites ingresados de acuerdo al número de volumen o frecuencia anual.
A20: 6.- Así mismo, usted visualizará el puntaje obtenido en la columna PUNTUACIÓN de acuerdo al grupo obtenido por cada trámite de acuerdo al número de volumen o frecuencia anual cosiderando lo siguiente: ** Primer grupo (trámites con menor demanda no incluye los trámites con demanda 0 ) = 3 ** Segundo grupo (trámites con demanda intermedia) = 6 ** Tercer grupo (trámites con mayor demanda) = 10
A21: Cada vez que requiera actualizar el puntaje presionando el botón puntuación, debe verificar que la celda de la columna puntaje se encuentren vacías, es decir, se debe borrar cualquier valor de puntaje obtenido previamente.
A22: b) Volumen de quejas asociadas a un trámite:
A23: Considerará la cantidad de quejas recibidas en relación a un trámite durante un año. Estas quejas deberán estar documentadas en medios físicos y/o digitales.
A24: Para determinar la puntuación, se colocará en una tabla todos los trámites con sus correspondientes quejas ordenándose de menor a mayor. Se dividirá en 2 partes en los que cada grupo contenga la misma cantidad de trámites.
A25: Para realizar el registro realice lo siguiente:
A26: 1.- Seleccione la hoja VOLUMEN DE QUEJAS
A27: 2.- Ingrese los trámites de la institución registrando el identificador y nombre en las columnas respectivas. Si usted requiere de acuerdo al número de trámites copie filas adicionales que estén dentro del cuadro
A28: 3.- Para cada trámite debe especificar en la columna VOLUMEN QUEJAS el número de quejas anual, de acuerdo a lo mencionado anteriormente.
A29: 4.- Una vez terminado el llenado solicitado presione el botón PUNTUACIÓN.
A30: 5.- Usted visualizará el ordenamiento de los trámites ingresados de acuerdo al número de volumen o frecuencia anual.
A31: 6.- Así mismo, usted visualizará el puntaje obtenido en la columna PUNTUACIÓN de acuerdo al grupo obtenido por cada trámite de acuerdo al número de volumen o frecuencia anual cosiderando lo siguiente: La puntuación se basará en los siguientes grupos: ** Primer grupo (trámites con menor cantidad de quejas, no incluye los trámites con queja 0 ) = 4 ** Segundo grupo (trámites con mayor porcentaje de quejas) = 10
A32: El valor del volumen de quejas no debe ser superior al valor del volumen de la demana, no le permitirá registrar un valor.
A33: c) Costo para la administración pública:
A34: En cada trámite, basado en un caso estándar, se deberá estimar el costo incurrido en el costo de personal y recursos necesarios para su atención desde que el administrado entregó todos los requisitos hasta que la institución entregue el producto, respuesta o servicio requerido en el trámite. Se considerará:
A35: • Costo de personal:
A36: Costo del personal para atender el trámite, se excluyen actividades realizadas automáticamente o que dependen del administrado. El tiempo deberá considerar únicamente el tiempo efectivo de trabajo del personal, no debe considerar el tiempo de espera o de movimiento.
A37: • Costo de recursos:
A38: Se deberá considerar el costo directo en el que la institución debe incurrir para atender un trámite. Se debe considerar los insumos o materia prima necesaria u cualquier otro que la institución considere pertinente.
A39: Para realizar el registro realice lo siguiente:
A40: 1.- Seleccione la hoja COSTO ADMINISTRACIÓN PÚBLICA
A41: 2.- Ingrese los trámites de la institución registrando el identificador y nombre en las columnas respectivas. Si usted requiere de acuerdo al número de trámites copie filas adicionales que estén dentro del cuadro
A42: 3.- Para calcular el tiempo de las actividades, utilizar la hoja AUXILIAR COSTO ADMINISTRACIÓN donde deberá listar todas las actividades que realiza la institución en un caso estándar y asignar el tiempo mínimo que toma cada actvidad (en horas). El tiempo total de las actividades, deberá ingresar en la correspondiente celda de la hoja COSTO ADMINISTRACIÓN PÚBLICA
A43: 4.- En función de la información registrada en el paso 3, la matriz entregará el costo del personal
A44: 5.- Completar la columna "Costo recursos", en la cual ingresará el costo directo en el que incurre la institución para entregar el trámite. En este valor se considerarán los valores correspondientes a insumos y/o materia prima mínimos que se invierten por cada trámite (no se considera mano de obra)
A45: 6.- La columna "Costo para la adm. pública" mostrará el costo de este criterio para cada trámite
A46: 7,- Para que la fórmula funcione debe arrastrar hacia abajo al último de los támites ingresados, no copiar
A47: 7.- Una vez que disponga del Costo para la administración pública, presionar el botón "GENERAR".
A48: 8. Visualizar la hoja “RESUMEN DE COSTO AP” en la que va a encontrar copiada las celdas necesarias para el ordenamiento y puntuación de las mismas al presionar el botón “PUNTUACIÓN”
A50: d) Tiempo de respuesta:
A51: Considerará los tiempos que a las instituciones les toma dar respuesta a un trámite desde que reciben la solicitud del administrado hasta la finalización del mismo. Para la definición del tiempo se considerará un caso estándar.
A52: Para determinar la puntuación, se colocará en una tabla todos los trámites con el tiempo de respuesta, ordenándose de menor a mayor. Se dividirá en 4 grupos, en los que cada uno contenga la misma cantidad de trámites.
A53: Para realizar el registro realice lo siguiente:
A54: 1.- Seleccione la hoja TIEMPO DE RESPUESTA
A55: 2.- Ingrese los trámites de la institución registrando el identificador y nombre en las columnas respectivas. Si usted requiere de acuerdo al número de trámites copie filas adicionales que estén dentro del cuadro
A56: 3.- Para cada trámite debe especificar en la columna TIEMPO RESPUESTA el tiempo, de acuerdo a lo mencionado anteriormente.
A57: 4.- Una vez terminado el llenado solicitado presione el botón PUNTUACIÓN.
A58: 5.- Usted visualizará el ordenamiento de los trámites ingresados de acuerdo al número de volumen o frecuencia anual.
A59: 6.- Así mismo, usted visualizará el puntaje obtenido en la columna PUNTUACIÓN de acuerdo al grupo obtenido por cada trámite de acuerdo al número de volumen o frecuencia anual cosiderando lo siguiente: La puntuación considera lo siguiente: ** Primer grupo (menor o igual a 40 horas laboralres) = 0 ** Segundo grupo mayor 40 horas laboralres) = 30
A60: e) Canal de atención:
A61: Considerará los canales de atención a través de los cuales el administrado puede iniciar el trámite.
A62: Para realizar el registro realice lo siguiente:
A63: 1.- Seleccione la hoja CANAL ATENCIÓN
A64: 2.- Ingrese los trámites de la institución registrando el identificador y nombre en las columnas respectivas. Si usted requiere de acuerdo al número de trámites copie filas adicionales que estén dentro del cuadro
A65: 3.- Para cada trámite debe seleccionar el canal de atención del trámite en la columna CANAL ATENCIÓN, que pueden ser: El trámite se puede completar totalmente en línea: Se considera trámite totalmente en línea cuando el administrado no requiere realizar ninguna interacción presencial con la institución = 0 El trámite no se puede completar totalmente en línea: Se considera este caso, cuando el trámite incluye al menos una actividad, incluido mecanismos de pago, en la que el administrado deba acudir presencialmente a la institución, para la realización de dicho trámite. Los trámites presenciales se consideran dentro de esta categoría = 10
A66: 4.- De acuerdo a la selección usted obtendrá la puntuación del trámite que se visualizará en la columna PUNTUACIÓN.
A68: f) Resumen
A69: En esta hoja deberá consolidar todas las puntuaciones obtenidas para cada trámite en los criterios a) hasta e). Adicionalmente deberá analizar los criterios adicionales que dispone la norma técnica, para estos últimos solamente deberá seleccionar en la celda correspondiente y la matriz asignará la puntuación adicional. Los criterios que deberá considerar son: - NECESIDADES CIUDADANAS: Si la institución ha implementado mecanismos para identificar necesidades ciudadanas respecto al trámite, seleccionar "SI", caso contrario, seleccionar "NO" - SUSCEPTIBILIDAD A CORRUPCIÓN: Si la institución dispone de información documentada sobre presuntos actos de corrupción, seleccionar "SI", caso contrario, seleccionar "NO" - VOLUMEN DE DEVOLUCIONES: Si la institución posee documentación sobre devoluciones del trámite en una cantidad significativa, seleccionar "SI", caso contrario, seleccionar "NO" Para que funcione la lista depelgable debe arrastrar la lista y la puntuación hacia abajo al último de los támites ingresados, no copiar
A70: En la columna puntaje total se realizará la sumatoria de los valores de los criterios básicos y adicionales. Este valor deberá registrarse en la plataforma GOB.EC

Sheet DEMANDA ANUAL
A1: PRIORIZACIÓN DE TRÁMITES ADMINISTRATIVOS
A2: DEMANDA ANUAL
A4: IDENTIFICADOR | B4: TRÁMITE | C4: DEMANDA ANUAL | D4: PUNTAJE
A5: SGR-025-01-04 | B5: Disolución y liquidación de la Organizacion Social en Gestión de Riesgos | C5: 0 | D5: 0
A6: SGR-025-01-02 | B6: Inclusión y exclusión de miembros de organizaciones sociales en gestión de riesgos | C6: 0 | D6: 0
A7: SGR-025-01-03 | B7: Registro de directivas de la organización social en Gestión de Riesgos | C7: 2 | D7: 3
A8: SGR-022-01-01 | B8: Generación de mapa de amenazas | C8: 4 | D8: 3
A9: SGR-012-02-01 | B9: Información pública del Servicio Nacional de Gestión de Riesgos y Emergencias modalidad presencial | C9: 9 | D9: 3
A10: SGR-032-02-01 | B10: Información de gestión de riesgos en línea | C10: 10 | D10: 3
A11: SGR-032-01-01 | B11: Información de gestión de riesgos modalidad presencial | C11: 11 | D11: 6
A12: SGR-025-01-01 | B12: Aprobación del estatuto y otorgamiento de la personalidad jurídica como Organizacion Social en Gestión de Riesgos | C12: 14 | D12: 6
A13: SNGRE-024-01-01 | B13: Ejecución de asesoría técnica para simulaciones y simulacros por eventos peligrosos relacionados con la gestión del riesgo de desastres | C13: 15 | D13: 6
A14: SGR-032-03-01 | B14: Información de gestión de riesgos, modalidad no presencial | C14: 24 | D14: 6
A15: SNGRE-028-01-01 | B15: Coordinación para la participación del voluntariado de protección civil en eventos de concentración masiva | C15: 39 | D15: 10
A16: SGR-012-01-01 | B16: Información pública del Servicio Nacional de Gestión de Riesgos y Emergencias en línea | C16: 61 | D16: 10
A17: SNGRE-002-01-01 | B17: Acceso al análisis de amenaza o riesgo aceptable por eventos peligrosos relacionados con la gestión del riesgo de desastres en territorio nacional | C17: 418 | D17: 10
A18: SNGRE-016-01-01 | B18: Emisión de información de eventos peligrosos relacionados a la gestión del riesgo de desastres en territorio nacional | C18: 968 | D18: 10
A19: SGR-030-01-01 | B19: Inscripción de la ciudadanía para ingreso al Voluntariado de Protección Civil del Servicio Nacional de Gestión de Riesgos y Emergencias | C19: 6881 | D19: 10
A20: SNGRE-006-01-01 | B20: Ejecución de capacitación en gestión de riesgos de desastres | C20: 105493 | D20: 10

Sheet VOLUMEN DE QUEJAS
A1: PRIORIZACIÓN DE TRÁMITES ADMINISTRATIVOS
A2: VOLUMEN DE QUEJAS
A4: IDENTIFICADOR | B4: TRÁMITE | C4: VOLUMEN DEMANDA | D4: VOLUMEN DE QUEJAS | E4: PORCENTAJE | F4: PUNTUACIÓN
A5: SGR-025-01-04 | B5: Disolución y liquidación de la Organizacion Social en Gestión de Riesgos | C5: 0 | D5: 0 | E5: 0 | F5: 0
A6: SGR-025-01-02 | B6: Inclusión y exclusión de miembros de organizaciones sociales en gestión de riesgos | C6: 0 | D6: 0 | E6: 0 | F6: 0
A7: SGR-025-01-03 | B7: Registro de directivas de la organización social en Gestión de Riesgos | C7: 2 | D7: 0 | E7: 0 | F7: 0
A8: SGR-022-01-01 | B8: Generación de mapa de amenazas | C8: 4 | D8: 0 | E8: 0 | F8: 0
A9: SGR-012-02-01 | B9: Información pública del Servicio Nacional de Gestión de Riesgos y Emergencias modalidad presencial | C9: 9 | D9: 0 | E9: 0 | F9: 0
A10: SGR-032-02-01 | B10: Información de gestión de riesgos en línea | C10: 10 | D10: 1 | E10: 10 | F10: 10
A11: SGR-032-01-01 | B11: Información de gestión de riesgos modalidad presencial | C11: 11 | D11: 0 | E11: 0 | F11: 0
A12: SGR-025-01-01 | B12: Aprobación del estatuto y otorgamiento de la personalidad jurídica como Organizacion Social en Gestión de Riesgos | C12: 14 | D12: 0 | E12: 0 | F12: 0
A13: SNGRE-024-01-01 | B13: Ejecución de asesoría técnica para simulaciones y simulacros por eventos peligrosos relacionados con la gestión del riesgo de desastres | C13: 15 | D13: 0 | E13: 0 | F13: 0
A14: SGR-032-03-01 | B14: Información de gestión de riesgos, modalidad no presencial | C14: 24 | D14: 0 | E14: 0 | F14: 0
A15: SNGRE-028-01-01 | B15: Coordinación para la participación del voluntariado de protección civil en eventos de concentración masiva | C15: 39 | D15: 0 | E15: 0 | F15: 0
A16: SGR-012-01-01 | B16: Información pública del Servicio Nacional de Gestión de Riesgos y Emergencias en línea | C16: 61 | D16: 0 | E16: 0 | F16: 0
A17: SNGRE-002-01-01 | B17: Acceso al análisis de amenaza o riesgo aceptable por eventos peligrosos relacionados con la gestión del riesgo de desastres en territorio nacional | C17: 418 | D17: 0 | E17: 0 | F17: 0
A18: SNGRE-016-01-01 | B18: Emisión de información de eventos peligrosos relacionados a la gestión del riesgo de desastres en territorio nacional | C18: 968 | D18: 0 | E18: 0 | F18: 0
A19: SGR-030-01-01 | B19: Inscripción de la ciudadanía para ingreso al Voluntariado de Protección Civil del Servicio Nacional de Gestión de Riesgos y Emergencias | C19: 6881 | D19: 0 | E19: 0 | F19: 0
A20: SNGRE-006-01-01 | B20: Ejecución de capacitación en gestión de riesgos de desastres | C20: 105493 | D20: 0 | E20: 0 | F20: 0

Sheet COSTO ADMINISTRACIÓN PÚBLICA
A1: PRIORIZACIÓN DE TRÁMITES ADMINISTRATIVOS
A2: COSTOS PARA LA ADMINISTRACIÓN PÚBLICA
A4: IDENTIFICADOR | B4: TRÁMITE | C4: INSUMOS PARA COSTO | F4: COSTO PARA LA ADM. PÚBLICA | H4: SBU | I4: 400
C5: TIEMPO (HORAS) | D5: COSTO PERSONAL | E5: COSTO RECURSOS
A6: SGR-025-01-04 | B6: Disolución y liquidación de la Organizacion Social en Gestión de Riesgos | C6: ='AUXILIAR COSTO ADMINISTRACIÓN'!C12 -> 53 | D6: =C6*$I$4/160 -> 132.5 | E6: ='AUXILIAR COSTO ADMINISTRACIÓN'!C15 -> 1697.461317 | F6: =D6+E6 -> 1829.961317
A7: SGR-025-01-02 | B7: Inclusión y exclusión de miembros de organizaciones sociales en gestión de riesgos | C7: ='AUXILIAR COSTO ADMINISTRACIÓN'!G12 -> 52.5 | D7: =C7*$I$4/160 -> 131.25 | E7: ='AUXILIAR COSTO ADMINISTRACIÓN'!G15 -> 1697.461317 | F7: =D7+E7 -> 1828.711317
A8: SGR-025-01-03 | B8: Registro de directivas de la organización social en Gestión de Riesgos | C8: ='AUXILIAR COSTO ADMINISTRACIÓN'!K12 -> 52.5 | D8: 131.25 | E8: ='AUXILIAR COSTO ADMINISTRACIÓN'!K15 -> 1697.461317 | F8: 1828.711317
A9: SGR-022-01-01 | B9: Generación de mapa de amenazas | C9: ='AUXILIAR COSTO ADMINISTRACIÓN'!C28 -> 175 | D9: 437.5 | E9: ='AUXILIAR COSTO ADMINISTRACIÓN'!C31 -> 6821.113491 | F9: 7258.613491
A10: SGR-012-02-01 | B10: Información pública del Servicio Nacional de Gestión de Riesgos y Emergencias modalidad presencial | C10: ='AUXILIAR COSTO ADMINISTRACIÓN'!G28 -> 25 | D10: 62.5 | E10: ='AUXILIAR COSTO ADMINISTRACIÓN'!G31 -> 1697.461317 | F10: 1759.961317
A11: SGR-032-02-01 | B11: Información de gestión de riesgos en línea | C11: ='AUXILIAR COSTO ADMINISTRACIÓN'!K28 -> 4.5 | D11: 11.25 | E11: ='AUXILIAR COSTO ADMINISTRACIÓN'!K31 -> 2229.461317 | F11: 2240.711317
A12: SGR-032-01-01 | B12: Información de gestión de riesgos modalidad presencial | C12: ='AUXILIAR COSTO ADMINISTRACIÓN'!G44 -> 15 | D12: 37.5 | E12: ='AUXILIAR COSTO ADMINISTRACIÓN'!G47 -> 2229.461317 | F12: 2266.961317
A13: SGR-025-01-01 | B13: Aprobación del estatuto y otorgamiento de la personalidad jurídica como Organizacion Social en Gestión de Riesgos | C13: ='AUXILIAR COSTO ADMINISTRACIÓN'!K44 -> 61 | D13: 152.5 | E13: ='AUXILIAR COSTO ADMINISTRACIÓN'!K47 -> 1697.461317 | F13: 1849.961317
A14: SNGRE-024-01-01 | B14: Ejecución de asesoría técnica para simulaciones y simulacros por eventos peligrosos relacionados con la gestión del riesgo de desastres | C14: ='AUXILIAR COSTO ADMINISTRACIÓN'!C44 -> 24.5 | D14: 61.25 | E14: ='AUXILIAR COSTO ADMINISTRACIÓN'!C47 -> 2229.461317 | F14: 2290.711317
A15: SGR-032-03-01 | B15: Información de gestión de riesgos, modalidad no presencial | C15: ='AUXILIAR COSTO ADMINISTRACIÓN'!C60 -> 15 | D15: 37.5 | E15: ='AUXILIAR COSTO ADMINISTRACIÓN'!C63 -> 2229.461317 | F15: 2266.961317
A16: SNGRE-028-01-01 | B16: Coordinación para la participación del voluntariado de protección civil en eventos de concentración masiva | C16: ='AUXILIAR COSTO ADMINISTRACIÓN'!G60 -> 127 | D16: 317.5 | E16: ='AUXILIAR COSTO ADMINISTRACIÓN'!G63 -> 2237.461317 | F16: 2554.961317
A17: SGR-012-01-01 | B17: Información pública del Servicio Nacional de Gestión de Riesgos y Emergencias en línea | C17: ='AUXILIAR COSTO ADMINISTRACIÓN'!K60 -> 25 | D17: 62.5 | E17: ='AUXILIAR COSTO ADMINISTRACIÓN'!K63 -> 1697.461317 | F17: 1759.961317
A18: SNGRE-002-01-01 | B18: Acceso al análisis de amenaza o riesgo aceptable por eventos peligrosos relacionados con la gestión del riesgo de desastres en territorio nacional | C18: ='AUXILIAR COSTO ADMINISTRACIÓN'!C76 -> 101 | D18: 252.5 | E18: ='AUXILIAR COSTO ADMINISTRACIÓN'!C79 -> 7529.113491 | F18: 7781.613491
A19: SNGRE-016-01-01 | B19: Emisión de información de eventos peligrosos relacionados a la gestión del riesgo de desastres en territorio nacional | C19: ='AUXILIAR COSTO ADMINISTRACIÓN'!G76 -> 11 | D19: 27.5 | E19: ='AUXILIAR COSTO ADMINISTRACIÓN'!G79 -> 5726.911976 | F19: 5754.411976
A20: SGR-030-01-01 | B20: Inscripción de la ciudadanía para ingreso al Voluntariado de Protección Civil del Servicio Nacional de Gestión de Riesgos y Emergencias | C20: ='AUXILIAR COSTO ADMINISTRACIÓN'!K76 -> 1.5 | D20: 3.75 | E20: ='AUXILIAR COSTO ADMINISTRACIÓN'!K79 -> 844.7306585 | F20: 848.4806585
A21: SNGRE-006-01-01 | B21: Ejecución de capacitación en gestión de riesgos de desastres | C21: ='AUXILIAR COSTO ADMINISTRACIÓN'!C92 -> 0.5 | D21: 1.25 | E21: ='AUXILIAR COSTO ADMINISTRACIÓN'!C95 -> 844.7306585 | F21: 845.9806585

Sheet RESUMEN DE COSTOS AP
A1: PRIORIZACIÓN DE TRÁMITES ADMINISTRATIVOS
A2: COSTOS PARA LA ADMINISTRACIÓN PÚBLICA
A4: IDENTIFICADOR | B4: TRÁMITE | C4: COSTO PARA LA ADM. PÚBLICA | D4: PUNTUACIÓN
A5: SNGRE-006-01-01 | B5: Ejecución de capacitación en gestión de riesgos de desastres | C5: 845.9806585 | D5: 5
A6: SGR-030-01-01 | B6: Inscripción de la ciudadanía para ingreso al Voluntariado de Protección Civil del Servicio Nacional de Gestión de Riesgos y Emergencias | C6: 848.4806585 | D6: 5
A7: SGR-012-01-01 | B7: Información pública del Servicio Nacional de Gestión de Riesgos y Emergencias en línea | C7: 1759.961317 | D7: 5
A8: SGR-012-02-01 | B8: Información pública del Servicio Nacional de Gestión de Riesgos y Emergencias modalidad presencial | C8: 1759.961317 | D8: 5
A9: SGR-025-01-02 | B9: Inclusión y exclusión de miembros de organizaciones sociales en gestión de riesgos | C9: 1828.711317 | D9: 5
A10: SGR-025-01-03 | B10: Registro de directivas de la organización social en Gestión de Riesgos | C10: 1828.711317 | D10: 5
A11: SGR-025-01-04 | B11: Disolución y liquidación de la Organizacion Social en Gestión de Riesgos | C11: 1829.961317 | D11: 10
A12: SGR-025-01-01 | B12: Aprobación del estatuto y otorgamiento de la personalidad jurídica como Organizacion Social en Gestión de Riesgos | C12: 1849.961317 | D12: 10
A13: SGR-032-02-01 | B13: Información de gestión de riesgos en línea | C13: 2240.711317 | D13: 10
A14: SGR-032-01-01 | B14: Información de gestión de riesgos modalidad presencial | C14: 2266.961317 | D14: 10
A15: SGR-032-03-01 | B15: Información de gestión de riesgos, modalidad no presencial | C15: 2266.961317 | D15: 10
A16: SNGRE-024-01-01 | B16: Ejecución de asesoría técnica para simulaciones y simulacros por eventos peligrosos relacionados con la gestión del riesgo de desastres | C16: 2290.711317 | D16: 20
A17: SNGRE-028-01-01 | B17: Coordinación para la participación del voluntariado de protección civil en eventos de concentración masiva | C17: 2554.961317 | D17: 20
A18: SNGRE-016-01-01 | B18: Emisión de información de eventos peligrosos relacionados a la gestión del riesgo de desastres en territorio nacional | C18: 5754.411976 | D18: 20
A19: SGR-022-01-01 | B19: Generación de mapa de amenazas | C19: 7258.613491 | D19: 20
A20: SNGRE-002-01-01 | B20: Acceso al análisis de amenaza o riesgo aceptable por eventos peligrosos relacionados con la gestión del riesgo de desastres en territorio nacional | C20: 7781.613491 | D20: 20

Sheet AUXILIAR COSTO ADMINISTRACIÓN
A2: TRÁMITE: | B2: SGR-025-01-04 : Disolución y liquidación de la Organizacion Social en Gestión de Riesgos | E2: TRÁMITE: | F2: SGR-025-01-02: Inclusión y exclusión de miembros de organizaciones sociales en gestión de riesgos | I2: TRÁMITE: | J2: SGR-025-01-03: Registro de directivas de la organización social en Gestión de Riesgos | M2: Costos Anuales (Recursos) 2020
A3: NO. | B3: ACTIVIDAD | C3: TIEMPO (HORAS) | E3: NO. | F3: ACTIVIDAD | G3: TIEMPO (HORAS) | I3: NO. | J3: ACTIVIDAD | K3: TIEMPO (HORAS) | M3: Luz | N3: =((705.62+1101.56)/410) -> 4.407756098
A4: 1 | B4: Recepción de solicitud | C4: 0 | E4: 1 | F4: Recepción de solicitud | G4: 0 | I4: 1 | J4: Recepción de solicitud | K4: 0 | M4: Serv. Telecomunicaciones x persona | N4: =192832.39/410 -> 470.3229024 | O4: =+N4/12 -> 39.1935752
A5: 2 | B5: Gestión de disolución y liquidación de la organización | C5: 48 | E5: 2 | F5: Gestión de inclusión y exclusión de miembros de organizaciones | G5: 48 | I5: 2 | J5: Gestión de registro de directivas de la organización | K5: 48 | M5: viáticos analistas | N5: 80
A6: 3 | B6: Emisión de resolución de disolución y liquidación de la organización | C6: 4 | E6: 3 | F6: Emisión de comunicación formal de la inclusión y exclusión de miembros de organizaciones | G6: 4 | I6: 3 | J6: Emisión de comunicación formal del registro de directiva | K6: 4 | M6: viático directivos | N6: 130
A7: 4 | B7: Preparación de respuesta, suscripción y envío | C7: 0.5 | E7: 4 | F7: Registro de trámite | G7: 0.5 | I7: 4 | J7: Registro de trámite | K7: 0.5 | M7: licencias ARCGIS x persona | N7: =59014/23 -> 2565.826087 | O7: =+N7/12 -> 213.8188406
A8: 5 | B8: Registro de trámite | C8: 0.5 | E8: 5 | I8: 5 | M8: microfono | N8: 8.74
A9: 6 | E9: 6 | I9: 6 | M9: monitor | N9: 350
A10: 7 | E10: 7 | I10: 7 | M10: teclado | N10: 10
A11: 8 | E11: 8 | I11: 8 | M11: mouse | N11: 10
A12: SUMATORIA ACTIVIDADES | C12: =SUM(C4:C11) -> 53 | E12: SUMATORIA ACTIVIDADES | G12: =SUM(G4:G11) -> 52.5 | I12: SUMATORIA ACTIVIDADES | K12: =SUM(K4:K11) -> 52.5 | M12: teléfono | N12: 270
A13: No. servidores relacionados al trámite | C13: 2 | E13: No. servidores relacionados al trámite | G13: 2 | I13: No. servidores relacionados al trámite | K13: 2 | M13: radio portátil | N13: 711
A14: Costos anuales x pers. | C14: =+N3+N4+N9+N10+N116+N15+N11 -> 848.7306585 | E14: Costos anuales x pers. | G14: =+N3+N4+N9+N10+N11+N15 -> 848.7306585 | I14: Costos anuales x pers. | K14: =+N3+N4+N9+N10+N11+N15 -> 848.7306585 | M14: camara web | N14: 70.5
A15: Costo total del trámite | C15: =+C14*C13 -> 1697.461317 | E15: Costo total del trámite | G15: =+G14*G13 -> 1697.461317 | I15: Costo total del trámite | K15: =+K14*K13 -> 1697.461317 | M15: resma hojas | N15: 4
M16: extensómetro magnético | N16: 5359.2
A18: TRÁMITE: | B18: SGR-022-01-01: Generación de mapa de amenazas | E18: TRÁMITE: | F18: SGR-012-02-01: Información pública del Servicio Nacional de Gestión de Riesgos y Emergencias modalidad presencial | I18: TRÁMITE: | J18: SGR-032-02-01 : Información de gestión de riesgos en línea
A19: NO. | B19: ACTIVIDAD | C19: TIEMPO (HORAS) | E19: NO. | F19: ACTIVIDAD | G19: TIEMPO (HORAS) | I19: NO. | J19: ACTIVIDAD | K19: TIEMPO (HORAS)
A20: 1 | B20: Recepción de solicitud | C20: 0 | E20: 1 | F20: Recepción de solicitud | G20: 0 | I20: 1 | J20: Ingreso al Geoportal | K20: 0
A21: 2 | B21: Análisis de los datos y revisión de información geográfica | C21: 6 | E21: 2 | F21: Verificación de información y análisis de datos | G21: 24 | I21: 2 | J21: Selección y descarga de información de gestión de riesgos (usuario) | K21: 0
A22: 3 | B22: Solicitud y recepción de datos a institutos técnicos científicos | C22: 72 | E22: 3 | F22: Preparación de respuesta, suscripción y envío | G22: 0.5 | I22: 3 | J22: Actualización de información Geoportal de la SNGRE a través de enlace http://datosabiertos-gestionriesgosec.opendata.arcgis.com/ | K22: 4
A23: 4 | B23: Generación de mapas | C23: 96 | E23: 4 | F23: Registro de trámite | G23: 0.5 | I23: 4 | J23: Registro de trámite | K23: 0.5
A24: 5 | B24: Preparación de respuesta, suscripción y envío | C24: 0.5 | E24: 5 | I24: 5
A25: 6 | B25: Registro de trámite | C25: 0.5 | E25: 6 | I25: 6
A26: 7 | E26: 7 | I26: 7
A27: 8 | E27: 8 | I27: 8
A28: SUMATORIA ACTIVIDADES | C28: =SUM(C20:C27) -> 175 | E28: SUMATORIA ACTIVIDADES | G28: =SUM(G20:G27) -> 25 | I28: SUMATORIA ACTIVIDADES | K28: =SUM(K20:K27) -> 4.5
A29: No. servidores relacionados al trámite | C29: 2 | E29: No. servidores relacionados al trámite | G29: 2 | I29: No. servidores relacionados al trámite | K29: 2
A30: Costos anuales x pers. | C30: =+N3+N4+N7+N9+N10+N11 -> 3410.556745 | E30: Costos anuales x pers. | G30: =N3+N4+N9+N10+N11+N15 -> 848.7306585 | I30: Costos anuales x pers. | K30: =+N3+N4+N9+N10+N11+N12 -> 1114.730659
A31: Costo total del trámite | C31: =+C30*C29 -> 6821.113491 | E31: Costo total del trámite | G31: =+G30*G29 -> 1697.461317 | I31: Costo total del trámite | K31: =+K30*K29 -> 2229.461317
A34: TRÁMITE: | B34: SNGRE-024-01-01: Ejecución de asesoría técnica para simulaciones y simulacros por eventos peligrosos relacionados con la gestión del riesgo de desastres | E34: TRÁMITE: | F34: SGR-032-01-01: Información de gestión de riesgos modalidad presencial | I34: TRÁMITE: | J34: SGR-025-01-01: Aprobación del estatuto y otorgamiento de la personalidad jurídica como Organizacion Social en Gestión de Riesgos
A35: NO. | B35: ACTIVIDAD | C35: TIEMPO (HORAS) | E35: NO. | F35: ACTIVIDAD | G35: TIEMPO (HORAS) | I35: NO. | J35: ACTIVIDAD | K35: TIEMPO (HORAS)
A36: 1 | B36: Recepción de solicitud | C36: 0 | E36: 1 | F36: Recepción de solicitud | G36: 0 | I36: 1 | J36: Recepción de solicitud | K36: 0
A37: 2 | B37: Ejecución de asesoría para simulaciones y simulacros | C37: 24 | E37: 2 | F37: Verificación de disponibilidad de información | G37: 2 | I37: 2 | J37: Gestión de revisión y análisis de estatutos de la organización | K37: 48
A38: 3 | B38: Registro de asesoría para simulaciones y simulacros | C38: 0.5 | E38: 3 | F38: Consolidación y validación de información | G38: 4 | I38: 3 | J38: Emisión de personalidad jurídica | K38: 12
A39: 4 | E39: 4 | F39: Generación de información de gestión de riesgos | G39: 8 | I39: 4 | J39: Preparación de respuesta, suscripción y envío | K39: 0.5
A40: 5 | E40: 5 | F40: Preparación de respuesta, suscripción y envío | G40: 0.5 | I40: 5 | J40: Registro de trámite | K40: 0.5
A41: 6 | E41: 6 | F41: Registro de trámite | G41: 0.5 | I41: 6
A42: 7 | E42: 7 | I42: 7
A43: 8 | E43: 8 | I43: 8
A44: SUMATORIA ACTIVIDADES | C44: =SUM(C36:C43) -> 24.5 | E44: SUMATORIA ACTIVIDADES | G44: =SUM(G36:G43) -> 15 | I44: SUMATORIA ACTIVIDADES | K44: =SUM(K36:K43) -> 61
A45: No. servidores relacionados al trámite | C45: 2 | E45: No. servidores relacionados al trámite | G45: 2 | I45: No. servidores relacionados al trámite | K45: 2
A46: Costos anuales x pers. | C46: =+N4+N3+N9+N10+N11+N12 -> 1114.730659 | E46: Costos anuales x pers. | G46: =+K30 -> 1114.730659 | I46: Costos anuales x pers. | K46: =+N3+N4+N9+N10+N11+N15 -> 848.7306585
A47: Costo total del trámite | C47: =+C46*C45 -> 2229.461317 | E47: Costo total del trámite | G47: =+G46*G45 -> 2229.461317 | I47: Costo total del trámite | K47: =+K46*K45 -> 1697.461317
A50: TRÁMITE: | B50: SGR-032-03-01: Información de gestión de riesgos, modalidad no presencial | E50: TRÁMITE: | F50: SNGRE-028-01-01: Coordinación para la participación del voluntariado de protección civil en eventos de concentración masiva | I50: TRÁMITE: | J50: SGR-012-01-01: Información pública del Servicio Nacional de Gestión de Riesgos y Emergencias en línea
A51: NO. | B51: ACTIVIDAD | C51: TIEMPO (HORAS) | E51: NO. | F51: ACTIVIDAD | G51: TIEMPO (HORAS) | I51: NO. | J51: ACTIVIDAD | K51: TIEMPO (HORAS)
A52: 1 | B52: Recepción de solicitud | C52: 0 | E52: 1 | F52: Recepción de solicitud para participación del voluntariado en eventos de concentración masiva | G52: 0 | I52: 1 | J52: Recepción de solicitud a través de portal contacto ciudadano | K52: 0
A53: 2 | B53: Verificación de disponibilidad de información | C53: 2 | E53: 2 | F53: Activación de cadena de llamadas a voluntarios | G53: 2 | I53: 2 | J53: Verificación de información y análisis de datos | K53: 24
A54: 3 | B54: Consolidación y validación de información | C54: 4 | E54: 3 | F54: Verificación de disponibilidad de voluntarios a participar en evento | G54: 4 | I54: 3 | J54: Preparación de respuesta, suscripción y envío | K54: 0.5
A55: 4 | B55: Generación de información de gestión de riesgos | C55: 8 | E55: 4 | F55: Comunicación de confirmación al usuario | G55: 0.5 | I55: 4 | J55: Registro de trámite | K55: 0.5
A56: 5 | B56: Preparación de respuesta, suscripción y envío | C56: 0.5 | E56: 5 | F56: Participación del voluntariado en evento de concentración masiva | G56: 120 | I56: 5
A57: 6 | B57: Registro de trámite | C57: 0.5 | E57: 6 | F57: Registro de trámite | G57: 0.5 | I57: 6
A58: 7 | E58: 7 | I58: 7
A59: 8 | E59: 8 | I59: 8
A60: SUMATORIA ACTIVIDADES | C60: =SUM(C52:C59) -> 15 | E60: SUMATORIA ACTIVIDADES | G60: =SUM(G52:G59) -> 127 | I60: SUMATORIA ACTIVIDADES | K60: =SUM(K52:K59) -> 25
A61: No. servidores relacionados al trámite | C61: 2 | E61: No. servidores relacionados al trámite | G61: 2 | I61: No. servidores relacionados al trámite | K61: 2
A62: Costos anuales x pers. | C62: =+N3+N4+N9+N10+N11+N12 -> 1114.730659 | E62: Costos anuales x pers. | G62: =+N3+N4+N9+N10+N11+N12+N15 -> 1118.730659 | I62: Costos anuales x pers. | K62: =G30 -> 848.7306585
A63: Costo total del trámite | C63: =+C62*C61 -> 2229.461317 | E63: Costo total del trámite | G63: =+G62*G61 -> 2237.461317 | I63: Costo total del trámite | K63: =+K62*K61 -> 1697.461317
A66: TRÁMITE: | B66: SNGRE-002-01-01: Acceso al análisis de amenaza o riesgo aceptable por eventos peligrosos relacionados con la gestión del riesgo de desastres en territorio nacional | E66: TRÁMITE: | F66: SNGRE-016-01-01: Emisión de información de eventos peligrosos relacionados a la gestión del riesgo de desastres en territorio nacional | I66: TRÁMITE: | J66: SGR-030-01-01: Inscripción de la ciudadanía para ingreso al Voluntariado de Protección Civil del Servicio Nacional de Gestión de Riesgos y Emergencias
A67: NO. | B67: ACTIVIDAD | C67: TIEMPO (HORAS) | E67: NO. | F67: ACTIVIDAD | G67: TIEMPO (HORAS) | I67: NO. | J67: ACTIVIDAD | K67: TIEMPO (HORAS)
A68: 1 | B68: Recepción de solicitud de análisis de amenaza o riesgo aceptable | C68: 0 | E68: 1 | F68: Recepción de solicitud | G68: 0 | I68: 1 | J68: Recepción de solicitud | K68: 0
A69: 2 | B69: Análisis de información geomorfológica de la zona | C69: 24 | E69: 2 | F69: Verificación de disponibilidad de información | G69: 2 | I69: 2 | J69: Validación de requisitos | K69: 0.5
A70: 3 | B70: Inspección en territorio | C70: 60 | E70: 3 | F70: Consolidación y validación de información | G70: 4 | I70: 3 | J70: Comunicación de aprobación de inscripción | K70: 0.5
A71: 4 | B71: Geneación de informe y mapa de amenaza | C71: 16 | E71: 4 | F71: Generación de información de eventos peligrosos | G71: 4 | I71: 4 | J71: Registro de trámite | K71: 0.5
A72: 5 | B72: Preparación de respuesta, suscripción y envío | C72: 0.5 | E72: 5 | F72: Preparación de respuesta, suscripción y envío | G72: 0.5 | I72: 5
A73: 6 | B73: Registro de trámite | C73: 0.5 | E73: 6 | F73: Registro de trámite | G73: 0.5 | I73: 6
A74: 7 | E74: 7 | I74: 7
A75: 8 | E75: 8 | I75: 8
A76: SUMATORIA ACTIVIDADES | C76: =SUM(C68:C75) -> 101 | E76: SUMATORIA ACTIVIDADES | G76: =SUM(G68:G75) -> 11 | I76: SUMATORIA ACTIVIDADES | K76: =SUM(K68:K75) -> 1.5
A77: No. Servidore relacionados al trámite | C77: 2 | E77: No. Servidore relacionados al trámite | G77: 3 | I77: No. Servidore relacionados al trámite | K77: 1
A78: Costos anuales x pers. | C78: =+N3+N4+N5+N7+N9+N10+N11+N12+N15 -> 3764.556745 | E78: Costos anuales x pers. | G78: =+N3+N4+N8+N9+N10+N11+N12+N13+N14+N15 -> 1908.970659 | I78: Costos anuales x pers. | K78: =+N3+N4+N9+N10+N11 -> 844.7306585
A79: Costo total del trámite | C79: =+C78*C77 -> 7529.113491 | E79: Costo total del trámite | G79: =+G78*G77 -> 5726.911976 | I79: Costo total del trámite | K79: =+K78*K77 -> 844.7306585
A82: TRÁMITE: | B82: SNGRE-006-01-01: Ejecución de capacitación en gestión de riesgos de desastres
A83: NO. | B83: ACTIVIDAD | C83: TIEMPO (HORAS)
A84: 1 | B84: Registro de usuario en la plataforma http://cursosvirtuales.gestionderiesgos.gob.ec/. | C84: 0
A85: 2 | B85: Usuario realiza el curso | C85: 0
A86: 3 | B86: Atención de inquietud del curso en línea | C86: 0.5
A87: 4 | B87: Usario recibe certificado en línea | C87: 0
A88: 5 | B88: Registro de trámite | C88: 0
A89: 6
A90: 7
A91: 8
A92: SUMATORIA ACTIVIDADES | C92: =SUM(C84:C91) -> 0.5
A93: No. servidores relacionados al trámite | C93: 1
A94: Costos anuales x pers. | C94: =+N4+N3+N10+N9+N11 -> 844.7306585
A95: Costo total del trámite | C95: =+C94*C93 -> 844.7306585

Sheet TIEMPO DE RESPUESTA
A1: PRIORIZACIÓN DE TRÁMITES ADMINISTRATIVOS
A2: TIEMPO DE RESPUESTA
A4: IDENTIFICADOR | B4: TRÁMITE | C4: TIEMPO RESPUESTA (horas laborables) | D4: PUNTUACIÓN
A5: SGR-025-01-04 | B5: Disolución y liquidación de la Organizacion Social en Gestión de Riesgos | C5: 216 | D5: 30
A6: SGR-025-01-02 | B6: Inclusión y exclusión de miembros de organizaciones sociales en gestión de riesgos | C6: 192 | D6: 30
A7: SGR-025-01-03 | B7: Registro de directivas de la organización social en Gestión de Riesgos | C7: 192 | D7: 30
A8: SGR-022-01-01 | B8: Generación de mapa de amenazas | C8: 504 | D8: 30
A9: SGR-012-02-01 | B9: Información pública del Servicio Nacional de Gestión de Riesgos y Emergencias modalidad presencial | C9: 72 | D9: 30
A10: SGR-032-02-01 | B10: Información de gestión de riesgos en línea | C10: 24 | D10: 0
A11: SGR-032-01-01 | B11: Información de gestión de riesgos modalidad presencial | C11: 72 | D11: 30
A12: SGR-025-01-01 | B12: Aprobación del estatuto y otorgamiento de la personalidad jurídica como Organizacion Social en Gestión de Riesgos | C12: 360 | D12: 30
A13: SNGRE-024-01-01 | B13: Ejecución de asesoría técnica para simulaciones y simulacros por eventos peligrosos relacionados con la gestión del riesgo de desastres | C13: 120 | D13: 30
A14: SGR-032-03-01 | B14: Información de gestión de riesgos, modalidad no presencial | C14: 72 | D14: 30
A15: SNGRE-028-01-01 | B15: Coordinación para la participación del voluntariado de protección civil en eventos de concentración masiva | C15: 360 | D15: 30
A16: SGR-012-01-01 | B16: Información pública del Servicio Nacional de Gestión de Riesgos y Emergencias en línea | C16: 72 | D16: 30
A17: SNGRE-002-01-01 | B17: Acceso al análisis de amenaza o riesgo aceptable por eventos peligrosos relacionados con la gestión del riesgo de desastres en territorio nacional | C17: 720 | D17: 30
A18: SNGRE-016-01-01 | B18: Emisión de información de eventos peligrosos relacionados a la gestión del riesgo de desastres en territorio nacional | C18: 72 | D18: 30
A19: SGR-030-01-01 | B19: Inscripción de la ciudadanía para ingreso al Voluntariado de Protección Civil del Servicio Nacional de Gestión de Riesgos y Emergencias | C19: 288 | D19: 30
A20: SNGRE-006-01-01 | B20: Ejecución de capacitación en gestión de riesgos de desastres | C20: 192 | D20: 30

Sheet CANAL ATENCIÓN
A1: PRIORIZACIÓN DE TRÁMITES ADMINISTRATIVOS
A2: CANAL DE ATENCIÓN
I3: Totalmente en Línea | L3: 0
A4: IDENTIFICADOR | B4: TRÁMITE | C4: CANAL ATENCIÓN | D4: PUNTUACIÓN | I4: No se completa totalmente en línea. | L4: 10
A5: SGR-025-01-04 | B5: Disolución y liquidación de la Organizacion Social en Gestión de Riesgos | C5: No se completa totalmente en línea. | D5: =IF(ISBLANK(C5),"",IF(C5="Totalmente en línea",0,IF(C5="Inicia en línea",6,10))) -> 10
A6: SGR-025-01-02 | B6: Inclusión y exclusión de miembros de organizaciones sociales en gestión de riesgos | C6: No se completa totalmente en línea. | D6: =IF(ISBLANK(C6),"",IF(C6="Totalmente en línea",0,IF(C6="Inicia en línea",6,10))) -> 10
A7: SGR-025-01-03 | B7: Registro de directivas de la organización social en Gestión de Riesgos | C7: No se completa totalmente en línea. | D7: 10
A8: SGR-022-01-01 | B8: Generación de mapa de amenazas | C8: No se completa totalmente en línea. | D8: 10
A9: SGR-012-02-01 | B9: Información pública del Servicio Nacional de Gestión de Riesgos y Emergencias modalidad presencial | C9: No se completa totalmente en línea. | D9: 10
A10: SGR-032-02-01 | B10: Información de gestión de riesgos en línea | C10: Totalmente en Línea | D10: 0
A11: SGR-032-01-01 | B11: Información de gestión de riesgos modalidad presencial | C11: No se completa totalmente en línea. | D11: 10
A12: SGR-025-01-01 | B12: Aprobación del estatuto y otorgamiento de la personalidad jurídica como Organizacion Social en Gestión de Riesgos | C12: No se completa totalmente en línea. | D12: 10
A13: SNGRE-024-01-01 | B13: Ejecución de asesoría técnica para simulaciones y simulacros por eventos peligrosos relacionados con la gestión del riesgo de desastres | C13: No se completa totalmente en línea. | D13: 10
A14: SGR-032-03-01 | B14: Información de gestión de riesgos, modalidad no presencial | C14: No se completa totalmente en línea. | D14: 10
A15: SNGRE-028-01-01 | B15: Coordinación para la participación del voluntariado de protección civil en eventos de concentración masiva | C15: No se completa totalmente en línea. | D15: 10
A16: SGR-012-01-01 | B16: Información pública del Servicio Nacional de Gestión de Riesgos y Emergencias en línea | C16: Totalmente en Línea | D16: 0
A17: SNGRE-002-01-01 | B17: Acceso al análisis de amenaza o riesgo aceptable por eventos peligrosos relacionados con la gestión del riesgo de desastres en territorio nacional | C17: No se completa totalmente en línea. | D17: 10
A18: SNGRE-016-01-01 | B18: Emisión de información de eventos peligrosos relacionados a la gestión del riesgo de desastres en territorio nacional | C18: No se completa totalmente en línea. | D18: 10
A19: SGR-030-01-01 | B19: Inscripción de la ciudadanía para ingreso al Voluntariado de Protección Civil del Servicio Nacional de Gestión de Riesgos y Emergencias | C19: No se completa totalmente en línea. | D19: 10
A20: SNGRE-006-01-01 | B20: Ejecución de capacitación en gestión de riesgos de desastres | C20: Totalmente en Línea | D20: 0

Sheet RESUMEN
C1: BÁSICOS | H1: ADICIONALES
A2: ID trámite | B2: Nombre del trámite | C2: Demanda | D2: Quejas | E2: Costo para administración | F2: Tiempo de respuesta | G2: Canal de atención | H2: Necesidades ciudadanas | J2: Susceptibilidad a corrupción | L2: Volumen de devoluciones | N2: PUNTAJE TOTAL
H3: Criterio | I3: Puntuación | J3: Criterio | K3: Puntuación | L3: Criterio | M3: Puntuación | U3: demanda | V3: 0 | W3: 3 | X3: 6 | Y3: 10
A4: SGR-025-01-04 | B4: Disolución y liquidación de la Organizacion Social en Gestión de Riesgos | C4: 0 | D4: 0 | E4: 10 | F4: 30 | G4: 10 | H4: NO | I4: =IF(H4="SI",5,0) -> 0 | J4: NO | K4: =IF(J4="SI",10,0) -> 0 | L4: NO | M4: =IF(L4="SI",5,0) -> 0 | N4: =SUM(C4:G4,I4,K4,M4) -> 50 | U4: quejas | V4: 0 | W4: 4 | X4: 10
A5: SGR-025-01-02 | B5: Inclusión y exclusión de miembros de organizaciones sociales en gestión de riesgos | C5: 0 | D5: 0 | E5: 5 | F5: 30 | G5: 10 | H5: NO | I5: =IF(H5="SI",5,0) -> 0 | J5: NO | K5: =IF(J5="SI",10,0) -> 0 | L5: NO | M5: =IF(L5="SI",5,0) -> 0 | N5: =SUM(C5:G5,I5,K5,M5) -> 45 | U5: cpa | V5: 5 | W5: 10 | X5: 20
A6: SGR-025-01-03 | B6: Registro de directivas de la organización social en Gestión de Riesgos | C6: 3 | D6: 0 | E6: 5 | F6: 30 | G6: 10 | H6: NO | I6: 0 | J6: NO | K6: 0 | L6: NO | M6: 0 | N6: 48 | U6: tr | V6: 0 | W6: 30
A7: SGR-022-01-01 | B7: Generación de mapa de amenazas | C7: 3 | D7: 0 | E7: 20 | F7: 30 | G7: 10 | H7: NO | I7: 0 | J7: NO | K7: 0 | L7: NO | M7: 0 | N7: 63 | U7: ca | V7: 0 | W7: 10
A8: SGR-012-02-01 | B8: Información pública del Servicio Nacional de Gestión de Riesgos y Emergencias modalidad presencial | C8: 3 | D8: 0 | E8: 5 | F8: 30 | G8: 10 | H8: NO | I8: 0 | J8: NO | K8: 0 | L8: NO | M8: 0 | N8: 48 | V8: SI | W8: NO
A9: SGR-032-02-01 | B9: Información de gestión de riesgos en línea | C9: 3 | D9: 10 | E9: 10 | F9: 0 | G9: 0 | H9: NO | I9: 0 | J9: NO | K9: 0 | L9: NO | M9: 0 | N9: 23
A10: SGR-032-01-01 | B10: Información de gestión de riesgos modalidad presencial | C10: 6 | D10: 0 | E10: 10 | F10: 30 | G10: 10 | H10: NO | I10: 0 | J10: NO | K10: 0 | L10: NO | M10: 0 | N10: 56
A11: SGR-025-01-01 | B11: Aprobación del estatuto y otorgamiento de la personalidad jurídica como Organizacion Social en Gestión de Riesgos | C11: 6 | D11: 0 | E11: 10 | F11: 30 | G11: 10 | H11: NO | I11: 0 | J11: NO | K11: 0 | L11: NO | M11: 0 | N11: 56
A12: SNGRE-024-01-01 | B12: Ejecución de asesoría técnica para simulaciones y simulacros por eventos peligrosos relacionados con la gestión del riesgo de desastres | C12: 6 | D12: 0 | E12: 20 | F12: 30 | G12: 10 | H12: NO | I12: 0 | J12: NO | K12: 0 | L12: NO | M12: 0 | N12: 66
A13: SGR-032-03-01 | B13: Información de gestión de riesgos, modalidad no presencial | C13: 6 | D13: 0 | E13: 10 | F13: 30 | G13: 10 | H13: NO | I13: 0 | J13: NO | K13: 0 | L13: NO | M13: 0 | N13: 56
A14: SNGRE-028-01-01 | B14: Coordinación para la participación del voluntariado de protección civil en eventos de concentración masiva | C14: 10 | D14: 0 | E14: 20 | F14: 30 | G14: 10 | H14: NO | I14: 0 | J14: NO | K14: 0 | L14: NO | M14: 0 | N14: 70
A15: SGR-012-01-01 | B15: Información pública del Servicio Nacional de Gestión de Riesgos y Emergencias en línea | C15: 10 | D15: 0 | E15: 5 | F15: 30 | G15: 0 | H15: NO | I15: 0 | J15: NO | K15: 0 | L15: NO | M15: 0 | N15: 45
A16: SNGRE-002-01-01 | B16: Acceso al análisis de amenaza o riesgo aceptable por eventos peligrosos relacionados con la gestión del riesgo de desastres en territorio nacional | C16: 10 | D16: 0 | E16: 20 | F16: 30 | G16: 10 | H16: NO | I16: 0 | J16: NO | K16: 0 | L16: NO | M16: 0 | N16: 70
A17: SNGRE-016-01-01 | B17: Emisión de información de eventos peligrosos relacionados a la gestión del riesgo de desastres en territorio nacional | C17: 10 | D17: 0 | E17: 20 | F17: 30 | G17: 10 | H17: NO | I17: 0 | J17: NO | K17: 0 | L17: NO | M17: 0 | N17: 70
A18: SGR-030-01-01 | B18: Inscripción de la ciudadanía para ingreso al Voluntariado de Protección Civil del Servicio Nacional de Gestión de Riesgos y Emergencias | C18: 10 | D18: 0 | E18: 5 | F18: 30 | G18: 10 | H18: NO | I18: 0 | J18: NO | K18: 0 | L18: NO | M18: 0 | N18: 55
A19: SNGRE-006-01-01 | B19: Ejecución de capacitación en gestión de riesgos de desastres | C19: 10 | D19: 0 | E19: 5 | F19: 30 | G19: 0 | H19: NO | I19: 0 | J19: NO | K19: 0 | L19: NO | M19: 0 | N19: 45
